bitfinex-derivatives/quotes_SOLF0:USTF0_20240907
["timestamp","ask_amount","ask_price","bid_price","bid_amount"]
[1725699853456,13.59639214,127.53,127.47,9.64]
[1725699854255,13.59639214,127.53,127.47,3.923]
[1725699854762,9.64,127.52,127.47,3.923]
[1725699854952,3.9222,127.5,127.46,14.8815]
[1725699855353,9.64,127.52,127.46,14.8815]
[1725699857952,3.9224,127.5,127.46,14.8815]
[1725699858162,9.64,127.52,127.46,1.3183]
[1725699858355,9.64,127.5,127.45,9.64]
[1725699858661,3.9227,127.48,127.45,9.64]
[1725699858858,9.64,127.5,127.43,13.54379586]
[1725699859053,3.9228,127.48,127.43,13.54379586]
[1725699859355,3.9228,127.48,127.44,3.9239]
[1725699859955,3.9228,127.48,127.44,13.5639]
[1725699862653,3.923,127.47,127.44,13.5639]
[1725699865260,3.9236,127.45,127.37,105.53252773]
[1725699865452,33.18,127.49,127.42,9.64]
[1725699865652,9.64,127.49,127.42,13.48122539]
[1725699865852,3.9231,127.47,127.43,13.5642]
[1725699866053,3.9231,127.47,127.43,14.9195]
[1725699866458,3.9231,127.47,127.43,18.75405387]
[1725699867161,3.9231,127.47,127.43,14.9195]
[1725699868959,9.64,127.49,127.43,10.9953]
[1725699869961,9.64,127.49,127.43,14.9196]
[1725699870459,3.9232,127.47,127.43,14.9196]
[1725699871058,3.9234,127.46,127.43,14.9196]
[1725699876059,9.64,127.47,127.37,104.24652773]
[1725699876267,37.13974642,127.46,127.39,9.64]
[1725699876962,3.9243,127.43,127.4,3.925]
[1725699877761,3.924,127.44,127.41,3.9247]
[1725699878068,3.924,127.44,127.41,13.5647]
[1725699882470,3.9243,127.43,127.41,9.64]
[1725699883171,3.9243,127.43,127.4,3.9251]
[1725699884371,2.6911,127.52,127.41,9.64]
[1725699884372,26.2311,127.52,127.41,9.64]
[1725699884573,33.18,127.48,127.41,9.64]
[1725699885073,3.9239,127.45,127.42,3.9243]
[1725699885273,2.6911,127.52,127.43,9.64]
[1725699885466,35.8711,127.52,127.46,9.64]
[1725699886161,3.9224,127.5,127.46,13.5633]
[1725699886970,3.9219,127.51,127.47,13.563]
[1725699887269,13.59639214,127.53,127.47,13.563]
[1725699887270,37.13639214,127.53,127.47,9.64]
[1725699887468,37.13639214,127.53,127.48,3.9225]
[1725699887968,3.9218,127.51,127.47,13.5629]
[1725699888677,3.9216,127.52,127.48,3.9226]
[1725699890377,3.9219,127.51,127.47,13.5629]
[1725699894282,3.9219,127.51,127.48,3.9227]
[1725699899077,9.64,127.55,127.49,9.64]
[1725699899273,3.91761416,127.55,127.5,9.64]
[1725699899582,12.387,127.57,127.51,9.64]
[1725699899787,3.921,127.54,127.51,13.5616]
[1725699900082,9.64,127.56,127.5,9.64]
[1725699900475,9.64,127.56,127.5,13.562]
[1725699901079,3.9211,127.54,127.5,13.562]
[1725699901485,3.9211,127.54,127.51,3.9217]
[1725699902587,3.9207,127.55,127.52,3.9215]
[1725699903089,3.9204,127.56,127.53,3.9212]
[1725699903488,3.9204,127.56,127.52,9.64]
[1725699903884,3.9206,127.55,127.52,13.5613]
[1725699904186,3.943758,127.57,127.52,13.5613]
[1725699904585,3.9206,127.56,127.52,13.5613]
[1725699905280,3.9206,127.56,127.53,3.9212]
[1725699905487,3.9201,127.57,127.54,9.64]
[1725699905783,133.26497781,127.58,127.54,9.64]
[1725699905991,137.18467781,127.58,127.54,13.5606]
[1725699906690,137.18467781,127.58,127.49,2.6737]
[1725699906691,9.64,127.57,127.49,2.6737]
[1725699906991,9.64,127.56,127.49,12.3137]
[1725699907192,9.64,127.56,127.49,2.6737]
[1725699907490,9.64,127.54,127.49,1.2854]
[1725699907692,3.9213,127.53,127.49,14.8478]
[1725699908287,3.9213,127.53,127.5,3.9221]
[1725699908488,3.921,127.54,127.5,3.9221]
[1725699909294,3.921,127.54,127.5,13.5621]
[1725699913007,3.9212,127.53,127.5,13.5621]
[1725699924006,3.9211,127.54,127.51,3.9216]
[1725699924414,3.9213,127.53,127.5,13.5619]
[1725699925418,3.9216,127.52,127.49,10.9254]
[1725699928526,3.9216,127.52,127.49,14.8477]
[1725699930422,3.9213,127.53,127.5,13.5621]
[1725699930727,35.8954,127.57,127.5,9.64]
[1725699930922,3.9211,127.54,127.51,3.9218]
[1725699932031,3.9211,127.54,127.51,7.86995538]
[1725699932522,3.9211,127.54,127.51,3.9218]
[1725699933633,3.9211,127.54,127.51,7.81818144]
[1725699934227,3.9211,127.54,127.51,3.9218]
[1725699935519,3.9211,127.54,127.51,7.80288459]
[1725699935725,3.9208,127.55,127.52,3.9214]
[1725699937026,3.9209,127.54,127.51,3.9217]
[1725699938822,3.921,127.54,127.51,3.9217]
[1725699939023,33.18,127.54,127.49,1.2854]
[1725699940029,3.9219,127.51,127.49,1.2854]
[1725699940233,3.9219,127.51,127.48,1.3264]
[1725699940526,33.18,127.53,127.47,9.64]
[1725699941123,3.9223,127.5,127.47,9.64]
[1725699945239,3.9219,127.51,127.48,9.64]
[1725699946433,3.9219,127.51,127.48,13.5627]
[1725699946839,23.55,127.57,127.48,9.64]
[1725699947041,0.51604712,127.56,127.48,9.64]
[1725699947345,9.64,127.55,127.48,9.64]
[1725699947542,3.9218,127.52,127.48,13.5625]
[1725699947742,9.64,127.54,127.48,13.5625]
[1725699947933,33.19,127.54,127.47,3.923]
[1725699948137,33.19,127.54,127.46,10.9328]
[1725699948138,9.64,127.52,127.46,10.9328]
[1725699948537,9.64,127.52,127.47,3.923]
[1725699948538,3.9224,127.5,127.47,3.923]
[1725699949141,3.9224,127.5,127.46,10.9328]
[1725699949142,13.62133478,127.51,127.46,1.2928]
[1725699950237,37.17133478,127.51,127.46,1.2928]
[1725699950947,13.62133478,127.51,127.46,1.2928]
[1725699951437,37.17133478,127.51,127.46,1.2928]
[1725699954343,3.9229,127.48,127.46,1.2928]
[1725699958150,3.9224,127.49,127.46,5.2159]
[1725699958352,37.17133478,127.51,127.46,1.2928]
[1725699959446,3.9228,127.48,127.46,1.2928]
[1725699963050,3.9225,127.49,127.46,5.2161]
[1725699963653,33.19,127.5,127.38,1.361]
[1725699963851,33.19,127.5,127.43,9.64]
[1725699964061,33.19,127.5,127.43,13.62745245]
[1725699964454,33.19,127.5,127.43,17.55155245]
[1725699965057,23.55,127.54,127.46,9.64]
[1725699965262,23.55,127.54,127.47,9.64]
[1725699965263,33.19,127.54,127.47,9.64]
[1725699965459,33.19,127.54,127.47,13.5629]
[1725699965863,9.64,127.53,127.47,13.5629]
[1725699966261,3.9223,127.5,127.47,13.5629]
[1725699966457,33.19,127.53,127.47,9.64]
[1725699966662,33.19,127.53,127.46,9.64]
[1725699966863,33.19,127.53,127.48,9.64]
[1725699967667,33.19,127.54,127.48,9.64]
[1725699967865,2.6734,127.56,127.49,9.64]
[1725699968063,2.6734,127.56,127.5,9.64]
[1725699968263,9.64,127.57,127.5,9.64]
[1725699968464,3.9211,127.54,127.5,13.5619]
[1725699968976,3.9208,127.55,127.51,13.5616]
[1725699970274,3.9208,127.55,127.51,14.8609]
[1725699971673,3.9209,127.54,127.51,14.8609]
[1725699971860,3.9209,127.54,127.51,10.9393]
[1725699972065,3.9209,127.54,127.51,1.2993]
[1725699973167,9.64,127.55,127.44,2.6036]
[1725699973368,3.83467518,127.58,127.48,9.64]
[1725699973369,9.64,127.54,127.48,9.64]
[1725699974367,3.922,127.51,127.48,13.5626]
[1725699974966,3.922,127.51,127.48,3.9226]
[1725699980779,3.9221,127.5,127.47,13.5629]
[1725699983380,33.19,127.53,127.47,13.5629]
[1725699984080,3.9223,127.5,127.47,13.5629]
[1725699984277,3.87101314,127.51,127.47,9.64]
[1725699984477,33.19,127.53,127.47,9.64]
[1725699984678,3.9224,127.49,127.46,13.5632]
[1725699990681,3.9223,127.5,127.47,3.923]
[1725699991584,3.9223,127.5,127.47,13.563]
[1725699997085,23.55,127.53,127.47,9.64]
[1725699997282,9.64,127.51,127.46,9.64]
[1725699997585,13.58751773,127.51,127.46,9.64]
[1725699998281,37.13751773,127.51,127.46,9.64]
[1725699998486,33.19,127.5,127.45,1.2926]
[1725699998887,3.923,127.48,127.45,1.2926]
[1725699999282,33.19,127.5,127.45,1.2926]
[1725699999580,3.9232,127.47,127.45,1.2926]
[1725700000386,33.19,127.5,127.45,1.2926]
[1725700000586,33.19,127.5,127.44,9.64]
[1725700001191,3.9234,127.46,127.44,9.64]
[1725700002894,33.19,127.5,127.43,9.64]
[1725700003501,3.9235,127.46,127.42,3.9244]
[1725700003685,9.64,127.48,127.41,3.941]
[1725700003686,9.64,127.47,127.41,7.79753064]
[1725700003885,3.9241,127.44,127.41,2.662]
[1725700005193,3.9243,127.43,127.41,2.662]
[1725700006093,3.9243,127.43,127.41,1.3038]
[1725700006295,3.9246,127.42,127.41,1.3038]
[1725700006900,3.9246,127.42,127.39,9.64]
[1725700007102,3.9246,127.42,127.38,3.9256]
[1725700007395,13.66277272,127.44,127.36,1.4032]
[1725700007593,13.66277272,127.44,127.38,9.64]
[1725700008198,3.9249,127.41,127.38,13.5658]
[1725700009298,3.9249,127.41,127.38,9.64]
[1725700010003,3.9249,127.41,127.38,13.5658]
[1725700011401,9.64,127.43,127.37,13.566]
[1725700012396,3.9251,127.41,127.37,13.566]
[1725700013702,3.9251,127.41,127.37,3.926]
[1725700014004,3.9252,127.4,127.37,13.566]
[1725700015800,3.925,127.41,127.37,13.566]
[1725700017203,3.925,127.41,127.37,3.926]
[1725700017703,9.64,127.42,127.36,5.3295]
[1725700018103,3.9255,127.4,127.36,5.3295]
[1725700019299,3.9255,127.39,127.36,5.3295]
[1725700019509,9.64,127.4,127.36,1.4032]
[1725700019903,3.9256,127.39,127.36,1.4032]
[1725700020508,3.9256,127.39,127.36,5.3295]
[1725700021905,3.9256,127.39,127.36,1.4032]
[1725700025912,3.9256,127.39,127.36,5.3296]
[1725700026209,3.9254,127.4,127.36,5.3296]
[1725700026513,33.19,127.42,127.36,5.3296]
[1725700027314,3.9256,127.39,127.36,5.3296]
[1725700034816,27.57277272,127.44,127.36,11.0432]
[1725700035124,2.6255,127.45,127.37,9.64]
[1725700035322,3.9244,127.43,127.38,9.64]
[1725700035922,3.9244,127.43,127.39,3.9253]
[1725700036422,3.9241,127.44,127.4,13.47615057]
[1725700037120,155.00673595,127.46,127.41,9.64]
[1725700037421,3.94751773,127.51,127.44,9.64]
[1725700037728,3.9229,127.48,127.44,13.5637]
[1725700048132,3.92565551,127.5,127.44,9.64]
[1725700048332,9.64,127.51,127.44,9.64]
[1725700048532,13.48671174,127.51,127.44,9.64]
[1725700049338,3.923,127.48,127.45,3.9235]
[1725700050135,3.9231,127.47,127.44,13.5639]
[1725700054127,3.9228,127.48,127.46,9.64]
[1725700054332,3.84671174,127.51,127.46,9.64]
[1725700054540,33.19,127.52,127.46,9.64]
[1725700055538,3.923,127.47,127.44,13.5638]
[1725700056134,3.94648265,127.49,127.42,2.6863]
[1725700056335,33.19,127.51,127.44,9.64]
[1725700056535,37.07526646,127.51,127.44,9.64]
[1725700057339,3.9232,127.47,127.44,13.5639]
[1725700062047,3.9234,127.46,127.44,9.64]
[1725700089159,3.9232,127.47,127.45,9.64]
[1725700090564,33.19,127.5,127.43,13.5641]
[1725700090765,9.64,127.5,127.43,13.5641]
[1725700091161,3.9232,127.47,127.43,13.5641]
[1725700092066,3.9233,127.46,127.43,3.9241]
[1725700092271,3.9233,127.46,127.43,13.5641]
[1725700098267,3.9232,127.47,127.43,13.5641]
[1725700098468,3.9232,127.47,127.45,9.64]
[1725700099070,3.9229,127.48,127.45,13.5636]
[1725700100169,3.9225,127.49,127.47,9.64]
[1725700100370,33.19,127.54,127.47,9.64]
[1725700100573,3.9223,127.5,127.47,9.64]
[1725700100871,3.9223,127.5,127.47,13.563]
[1725700101367,3.9681463,127.51,127.47,13.61050058]
[1725700101670,5.88690395,127.55,127.5,9.64]
[1725700101874,112.4506096,127.56,127.52,9.64]
[1725700102670,3.9208,127.55,127.52,9.64]
[1725700103967,112.4506096,127.56,127.52,9.64]
[1725700104572,122.0906096,127.56,127.51,1.3607]
[1725700105372,3.9214,127.53,127.49,3.9223]
[1725700105580,9.64,127.55,127.49,9.64]
[1725700105970,3.9217,127.52,127.49,9.64]
[1725700107876,3.9218,127.51,127.49,9.64]
[1725700108268,33.19,127.55,127.49,9.64]
[1725700108472,3.922,127.51,127.49,9.64]
[1725700109475,3.9221,127.5,127.48,9.64]
[1725700111475,33.19,127.53,127.47,9.64]
[1725700111978,3.9226,127.49,127.47,9.64]
[1725700116585,3.9223,127.5,127.47,9.64]
[1725700119085,3.9225,127.49,127.47,9.64]
[1725700119583,3.9216,127.52,127.48,9.64]
[1725700119787,3.9216,127.52,127.5,9.64]
[1725700120680,3.9211,127.54,127.5,9.64]
[1725700120882,23.55,127.55,127.5,9.64]
[1725700121483,3.9215,127.53,127.5,9.64]
[1725700122786,3.9215,127.52,127.5,9.64]
[1725700122989,33.19,127.55,127.48,9.64]
[1725700123489,9.64,127.55,127.48,13.5626]
[1725700123987,3.9218,127.51,127.48,13.5626]
[1725700125186,3.9223,127.5,127.47,2.6731]
[1725700125492,3.9223,127.5,127.47,12.3131]
[1725700128389,3.9223,127.5,127.47,16.2361]
[1725700130490,23.55,127.52,127.47,9.64]
[1725700130686,33.19,127.52,127.46,9.64]
[1725700131087,3.9226,127.49,127.46,9.64]
[1725700131280,33.19,127.52,127.46,9.64]
[1725700132482,3.9226,127.49,127.46,9.64]
[1725700135892,3.9227,127.48,127.46,9.64]
[1725700139899,3.923,127.47,127.46,9.64]
[1725700144602,3.923,127.47,127.45,10.9687]
[1725700153606,9.64,127.49,127.39,2.8203]
[1725700153914,9.64,127.47,127.41,9.64]
[1725700154809,3.9242,127.44,127.41,9.64]
[1725700160312,33.19,127.47,127.41,9.64]
[1725700161208,3.9243,127.43,127.41,9.64]
[1725700166915,9.64,127.46,127.41,13.5648]
[1725700167121,23.55,127.49,127.41,13.5648]
[1725700167312,33.19,127.48,127.41,13.5648]
[1725700168315,3.9239,127.45,127.41,13.5648]
[1725700171215,3.924,127.44,127.41,13.5648]
[1725700174015,33.19,127.48,127.4,1.3274]
[1725700174324,33.19,127.46,127.4,10.9674]
[1725700174514,37.03016732,127.46,127.4,10.9674]
[1725700175321,3.9245,127.43,127.4,14.8926]
[1725700176621,3.9245,127.43,127.4,10.9674]
[1725700177527,3.9245,127.43,127.4,14.8926]
[1725700179828,3.9245,127.43,127.4,10.9674]
[1725700181737,3.9241,127.44,127.41,9.64]
[1725700183331,3.9241,127.44,127.41,13.5647]
[1725700183533,37.03016732,127.46,127.4,10.9674]
[1725700183736,9.64,127.46,127.4,10.9674]
[1725700184336,13.64817218,127.46,127.4,10.9674]
[1725700184638,3.9242,127.44,127.4,14.8924]
[1725700186238,3.9243,127.43,127.4,14.8924]
[1725700190145,3.9243,127.43,127.4,10.9674]
[1725700197349,3.9247,127.42,127.4,1.3274]
[1725700200946,33.19,127.45,127.4,1.3274]
[1725700201552,3.9248,127.42,127.4,1.3274]
[1725700208953,3.9252,127.4,127.38,130.4556376]
[1725700209460,33.19,127.45,127.38,134.3812376]
[1725700210458,3.9248,127.42,127.39,3.9255]
[1725700213364,3.9248,127.42,127.38,130.4556376]
[1725700213664,3.9248,127.42,127.38,134.3813376]
[1725700216058,3.9248,127.42,127.39,3.9255]
[1725700219673,3.9249,127.41,127.38,134.3813376]
[1725700220069,3.9249,127.41,127.38,130.4556376]
[1725700221075,3.9249,127.41,127.38,134.3814376]
[1725700221276,3.9249,127.41,127.38,130.4556376]
[1725700221968,3.9249,127.41,127.38,134.3814376]
[1725700224867,33.19,127.43,127.37,3.926]
[1725700225075,9.64,127.42,127.36,1.3425]
[1725700225578,9.64,127.4,127.36,1.3425]
[1725700226371,3.9258,127.39,127.36,1.3425]
[1725700227172,3.9259,127.38,127.36,1.3425]
[1725700228875,3.9261,127.37,127.33,3.9272]
[1725700229075,3.9261,127.37,127.26,1.3002]
[1725700229076,9.64,127.38,127.31,9.64]
[1725700229578,3.9265,127.36,127.32,3.9275]
[1725700230180,3.9265,127.36,127.33,4.00739783]
[1725700232170,3.9265,127.36,127.32,5.2384]
[1725700232679,3.9265,127.36,127.32,14.8784]
[1725700232876,3.9268,127.35,127.32,5.2384]
[1725700233281,3.9268,127.35,127.32,1.3109]
[1725700237785,3.9271,127.34,127.32,1.3109]
[1725700237984,9.64,127.36,127.32,1.3109]
[1725700238489,3.9272,127.34,127.3,13.5682]
[1725700243386,3.9274,127.33,127.3,13.5682]
[1725700244594,3.9274,127.33,127.3,9.64]
[1725700247398,3.9272,127.34,127.3,9.64]
[1725700248394,3.9272,127.34,127.3,13.5681]
[1725700249197,26.2235,127.38,127.31,3.9279]
[1725700249198,3.9268,127.35,127.31,3.9279]
[1725700249499,3.9268,127.35,127.31,9.64]
[1725700249988,3.9268,127.35,127.31,13.5677]
[1725700250190,3.9265,127.36,127.31,9.64]
[1725700250700,3.9265,127.36,127.32,3.9275]
[1725700260988,3.9265,127.36,127.33,3.9273]
[1725700261592,23.58,127.41,127.34,13.567]
[1725700261894,9.64,127.4,127.34,14.8798]
[1725700262094,3.926,127.38,127.35,3.9267]
[1725700265991,3.926,127.38,127.34,18.83933239]
[1725700270590,3.926,127.38,127.31,3.9279]
[1725700270591,3.9269,127.35,127.31,3.9279]
[1725700270797,9.64,127.35,127.29,12.3521]
[1725700271300,9.64,127.35,127.31,3.9279]
[1725700271301,13.567,127.35,127.31,3.9279]
[1725700272604,3.9271,127.34,127.31,3.9279]
[1725700273802,3.9271,127.34,127.3,13.5681]
[1725700275207,3.9274,127.33,127.3,13.5681]
[1725700275407,9.64,127.35,127.3,13.5681]
[1725700276407,3.9272,127.34,127.3,13.5681]
[1725700277910,3.9274,127.33,127.3,9.64]
[1725700278208,3.9274,127.33,127.27,11.0594]
[1725700278209,9.64,127.33,127.27,11.0594]
[1725700278408,9.64,127.33,127.27,2.7174]
[1725700278603,3.9282,127.31,127.27,6.6466]
[1725700278803,9.64,127.33,127.27,2.7174]
[1725700279005,9.64,127.32,127.27,2.7174]
[1725700279710,3.9283,127.3,127.27,2.7174]
[1725700280211,9.64,127.31,127.27,1.298]
[1725700280412,1.3819,127.34,127.27,1.298]
[1725700280706,9.64,127.31,127.27,1.298]
[1725700281412,13.55176066,127.31,127.27,1.298]
[1725700281613,3.9289,127.28,127.27,1.298]
[1725700287916,3.9289,127.28,127.24,5.2753]
[1725700288116,3.9289,127.28,127.24,14.9153]
[1725700288419,3.9289,127.28,127.24,18.74899046]
[1725700289221,3.9293,127.27,127.24,9.10899046]
[1725700289413,3.9293,127.27,127.24,18.74899046]
[1725700290216,3.929,127.28,127.24,18.74899046]
[1725700290418,13.55176066,127.31,127.24,18.74899046]
[1725700291317,3.9291,127.28,127.24,18.74899046]
[1725700292522,3.9292,127.27,127.24,18.74899046]
[1725700292822,3.9292,127.27,127.24,1.3453]
[1725700294422,3.9291,127.28,127.24,14.9154]
[1725700295224,3.9291,127.28,127.24,16.1968]
[1725700296422,3.91176066,127.31,127.25,3.9296]
[1725700296625,9.64,127.3,127.25,3.9296]
[1725700298027,3.9291,127.28,127.25,3.9296]
[1725700306628,3.9284,127.3,127.26,9.64]
[1725700307433,3.9284,127.3,127.27,3.929]
[1725700308229,3.9281,127.31,127.27,3.929]
[1725700308931,3.9285,127.3,127.26,13.5692]
[1725700309930,3.9285,127.3,127.27,3.929]
[1725700310732,9.64,127.33,127.26,13.5693]
[1725700312137,3.9285,127.3,127.26,13.5693]
[1725700312532,3.9285,127.3,127.26,3.9293]
[1725700313130,3.9288,127.29,127.26,3.9293]
[1725700313835,3.9288,127.29,127.25,1.3317]
[1725700314035,3.9288,127.29,127.25,5.2614]
[1725700315233,3.929,127.28,127.25,5.2614]
[1725700315439,3.929,127.28,127.25,1.3317]
[1725700316138,3.929,127.28,127.24,16.1967]
[1725700316341,3.929,127.28,127.25,3.9298]
[1725700319338,3.9287,127.29,127.25,3.9298]
[1725700320144,3.9287,127.29,127.26,3.9294]
[1725700320439,3.9284,127.3,127.26,3.9294]
[1725700321137,9.64,127.32,127.26,3.9294]
[1725700321138,3.9286,127.29,127.26,3.9294]
[1725700321738,3.9284,127.3,127.27,3.9292]
[1725700326649,151.88748807,127.34,127.28,9.64]
[1725700326844,151.88748807,127.34,127.25,1.3197]
[1725700326845,150.50558807,127.34,127.29,9.64]
[1725700327047,150.50558807,127.34,127.31,9.64]
[1725700327241,3.9274,127.33,127.3,5.3168]
[1725700327739,3.9274,127.33,127.3,1.3885]
[1725700327952,150.50558807,127.34,127.25,1.3197]
[1725700327953,3.9279,127.32,127.25,1.3197]
[1725700328147,3.9279,127.32,127.27,9.64]
[1725700328345,3.9279,127.32,127.28,3.9287]
[1725700328743,3.9281,127.31,127.27,9.64]
[1725700329139,3.9281,127.31,127.27,13.569]
[1725700331847,3.9281,127.31,127.28,3.9289]
[1725700334851,3.9279,127.32,127.28,3.9289]
[1725700335055,3.9279,127.32,127.27,9.64]
[1725700335056,3.9279,127.32,127.29,3.9285]
[1725700335357,150.50558807,127.34,127.29,3.9285]
[1725700335551,3.9276,127.33,127.29,3.9285]
[1725700339169,3.9276,127.33,127.3,7.79132983]
[1725700339457,154.43278807,127.34,127.29,9.64]
[1725700339660,154.43278807,127.34,127.3,7.76048566]
[1725700339861,154.43278807,127.34,127.3,3.83248566]
[1725700340363,154.43278807,127.34,127.31,3.9279]
[1725700343168,3.9274,127.33,127.3,7.76058566]
[1725700343665,3.9274,127.33,127.3,3.9281]
[1725700343867,3.9277,127.32,127.29,3.9284]
[1725700344866,9.64,127.32,127.26,11.0285]
[1725700345360,3.9283,127.3,127.27,3.929]
[1725700346668,3.9283,127.3,127.27,13.569]
[1725700349373,160.14558807,127.34,127.27,9.64]
[1725700349968,3.9285,127.3,127.27,9.64]
[1725700351671,3.9285,127.3,127.27,13.5692]
[1725700352575,160.14558807,127.34,127.28,3.9288]
[1725700352776,150.50558807,127.34,127.29,9.64]
[1725700353279,3.9279,127.32,127.29,9.64]
[1725700356182,3.9279,127.32,127.3,3.93188301]
[1725700356476,3.9279,127.32,127.29,13.5686]
[1725700357278,3.9275,127.33,127.3,3.95702946]
[1725700357577,3.9275,127.33,127.3,17.52512946]
[1725700362481,3.9275,127.33,127.3,13.5681]
[1725700364779,23.58,127.41,127.32,9.64]
[1725700364981,9.64,127.39,127.33,13.60771545]
[1725700365181,9.64,127.39,127.33,9.64]
[1725700365486,3.9265,127.36,127.33,17.48463153]
[1725700366379,3.9265,127.36,127.33,13.5672]
[1725700367288,3.9265,127.36,127.33,17.57003524]
[1725700374295,3.9265,127.36,127.33,13.5672]
[1725700374491,33.22,127.39,127.32,9.64]
[1725700374691,9.64,127.39,127.32,9.64]
[1725700375092,3.9269,127.35,127.32,9.64]
[1725700375798,3.9269,127.35,127.32,13.5676]
[1725700378099,3.9269,127.35,127.32,3.9276]
[1725700378291,3.9269,127.35,127.32,13.5676]
[1725700379289,3.9269,127.35,127.32,9.64]
[1725700382196,3.9271,127.34,127.32,9.64]
[1725700382394,9.64,127.35,127.26,5.3931427]
[1725700382598,3.9278,127.32,127.29,9.64]
[1725700383491,13.62083948,127.35,127.29,9.64]
[1725700383492,3.928,127.31,127.29,9.64]
[1725700391205,9.64,127.33,127.26,11.0285]
[1725700391510,9.64,127.33,127.26,14.98631528]
[1725700391703,9.64,127.33,127.26,14.9579]
[1725700393414,3.9286,127.29,127.26,14.9579]
[1725700395612,3.9286,127.29,127.26,11.0285]
[1725700396109,140.41695819,127.35,127.26,11.0285]
[1725700396110,140.41695819,127.35,127.28,9.64]
[1725700396315,150.05695819,127.35,127.28,9.64]
[1725700396807,3.9282,127.31,127.28,9.64]
[1725700399110,3.9284,127.3,127.27,3.9291]
[1725700399319,3.9284,127.3,127.27,9.64]
[1725700401610,3.9284,127.3,127.27,13.5692]
[1725700401815,3.9284,127.3,127.27,13.56660667]
[1725700402817,3.87552502,127.33,127.27,9.64]
[1725700403117,33.22,127.33,127.27,9.64]
[1725700403317,3.83583851,127.32,127.26,14.9578]
[1725700403705,33.22,127.33,127.26,11.0285]
[1725700404410,37.09238154,127.33,127.26,11.0285]
[1725700404715,3.9288,127.29,127.26,11.0285]
[1725700404913,37.09238154,127.33,127.26,11.0285]
[1725700405310,3.929,127.28,127.26,11.0285]
[1725700411927,33.22,127.32,127.26,1.3885]
[1725700412318,3.9291,127.28,127.26,1.3885]
[1725700413518,33.22,127.31,127.24,1.3453]
[1725700413723,33.22,127.31,127.24,10.9853]
[1725700414923,3.9294,127.27,127.24,13.57]
[1725700415122,33.22,127.3,127.23,13.61752754]
[1725700415332,33.22,127.3,127.23,9.64]
[1725700415830,33.22,127.3,127.23,13.50434427]
[1725700416128,3.9294,127.27,127.24,3.93]
[1725700416324,9.64,127.29,127.24,9.64]
[1725700417329,3.9294,127.27,127.24,9.64]
[1725700419134,3.9294,127.27,127.24,13.5701]
[1725700420941,3.9294,127.27,127.24,9.64]
[1725700421639,3.9295,127.26,127.24,9.64]
[1725700422831,3.9294,127.27,127.24,9.64]
[1725700423036,3.9294,127.27,127.24,13.5701]
[1725700423336,9.64,127.31,127.25,9.64]
[1725700423536,3.9291,127.28,127.25,9.64]
[1725700423739,33.22,127.31,127.25,9.64]
[1725700424241,3.9293,127.27,127.25,9.64]
[1725700424642,3.9293,127.27,127.24,13.5701]
[1725700430750,3.9296,127.26,127.24,13.5701]